bitfinex/quotes_SOLUSD_20230105
["timestamp","ask_amount","ask_price","bid_price","bid_amount"]
[1672941654391,4.1,13.1,13.099,269.10600001]
[1672941655672,4.1,13.1,13.099,326.40600001]
[1672941657544,26.51,13.11,13.1,20.0]
[1672941657756,26.51,13.11,13.1,320.34127868]
[1672941658066,26.51,13.11,13.102,20.0]
[1672941658277,26.51,13.11,13.104,20.0]
[1672941659661,26.51,13.11,13.102,20.0]
[1672941660400,26.51,13.11,13.101,57.29]
[1672941661035,173.8212,13.114,13.103,20.0]
[1672941662592,173.8212,13.114,13.102,17.0]
[1672941663555,173.8212,13.114,13.101,57.29]
[1672941663749,57.23,13.114,13.098,20.0]
[1672941663954,57.23,13.114,13.099,74.3]
[1672941664170,57.23,13.114,13.1,20.0]
[1672941664387,57.23,13.114,13.102,20.0]
[1672941664595,6.00889698,13.11,13.103,17.0]
[1672941665020,6.00889698,13.11,13.104,97.27]
[1672941665229,6.00889698,13.11,13.106,20.0]
[1672941666392,6.00889698,13.11,13.104,97.27]
[1672941666917,6.00889698,13.11,13.104,77.27]
[1672941667105,6.00889698,13.11,13.104,20.0]
[1672941667316,6.00889698,13.11,13.105,57.27]
[1672941667539,6.00889698,13.11,13.106,20.0]
[1672941668073,6.00889698,13.11,13.104,20.0]
[1672941668275,6.00889698,13.11,13.101,57.29]
[1672941668473,32.51889698,13.11,13.099,57.3]
[1672941668678,17.0,13.109,13.099,57.3]
[1672941668890,6.00889698,13.108,13.099,57.3]
[1672941669138,6.00889698,13.108,13.098,77.3]
[1672941670274,6.00889698,13.108,13.098,57.3]
[1672941670490,6.00889698,13.108,13.097,175.8905]
[1672941670889,6.00889698,13.108,13.098,17.0]
[1672941671100,6.00889698,13.108,13.099,20.0]
[1672941671754,6.00889698,13.108,13.098,37.0]
[1672941671949,6.00889698,13.108,13.098,17.0]
[1672941674388,6.00889698,13.108,13.097,175.8905]
[1672941675640,6.00889698,13.108,13.099,20.0]
[1672941676062,6.00889698,13.108,13.098,37.0]
[1672941676709,6.00889698,13.108,13.097,175.8905]
[1672941676946,17.0,13.107,13.097,175.8905]
[1672941677107,6.00889698,13.106,13.097,175.8905]
[1672941679435,6.00889698,13.106,13.098,17.0]
[1672941679628,6.00889698,13.106,13.099,20.0]
[1672941679838,6.00889698,13.106,13.099,57.3]
[1672941684906,6.00889698,13.106,13.098,57.3]
[1672941685224,6.00889698,13.106,13.096,57.31]
[1672941687325,6.00889698,13.106,13.097,17.0]
[1672941694250,6.00889698,13.106,13.099,20.0]
[1672941695001,6.00889698,13.106,13.098,57.3]
[1672941700968,6.00889698,13.106,13.1,20.0]
[1672941701926,6.00889698,13.106,13.1,77.29]
[1672941702778,6.00889698,13.106,13.1,57.29]
[1672941707296,6.00889698,13.106,13.101,17.0]
[1672941709488,6.00889698,13.106,13.1,57.29]
[1672941709693,6.00889698,13.106,13.099,21.09858152]
[1672941709914,6.00889698,13.106,13.1,17.0]
[1672941712226,6.00889698,13.106,13.099,57.3]
[1672941712440,6.00889698,13.106,13.098,20.0]
[1672941712655,6.00889698,13.106,13.096,78.40858152]
[1672941712865,6.00889698,13.106,13.096,57.31]
[1672941713083,17.0,13.105,13.096,57.31]
[1672941713393,6.00889698,13.104,13.096,57.31]
[1672941722121,6.00889698,13.104,13.091,41.09858152]
[1672941722122,20.0,13.102,13.092,57.33]
[1672941722313,19.8,13.1,13.091,21.09858152]
[1672941722528,6.00889698,13.099,13.09,57.34]
[1672941723704,17.0,13.098,13.085,57.36]
[1672941723919,6.00889698,13.097,13.085,57.36]
[1672941724109,17.0,13.096,13.085,57.36]
[1672941724313,6.00889698,13.095,13.082,21.09858152]
[1672941724651,19.89,13.09,13.083,57.37]
[1672941724962,6.00889698,13.089,13.083,57.37]
[1672941725170,6.00889698,13.089,13.082,57.37]
[1672941725389,6.00889698,13.089,13.083,20.0]
[1672941726004,6.00889698,13.089,13.085,20.0]
[1672941726212,6.00889698,13.089,13.086,57.35]
[1672941726637,6.00889698,13.089,13.085,20.0]
[1672941726960,6.00889698,13.089,13.084,20.0]
[1672941727367,6.00889698,13.089,13.083,20.0]
[1672941727577,6.00889698,13.089,13.084,57.36]
[1672941727788,6.00889698,13.089,13.085,20.0]
[1672941728001,6.00889698,13.089,13.084,57.36]
[1672941728211,6.00889698,13.089,13.085,20.0]
[1672941728957,6.00889698,13.089,13.084,20.0]
[1672941729277,6.00889698,13.089,13.085,57.36]
[1672941729485,6.00889698,13.089,13.086,20.0]
[1672941730113,6.00889698,13.089,13.084,20.0]
[1672941730730,6.00889698,13.089,13.083,20.0]
[1672941731061,6.00889698,13.089,13.084,57.36]
[1672941731274,6.00889698,13.089,13.085,20.0]
[1672941731984,6.00889698,13.089,13.084,20.0]
[1672941733356,6.00889698,13.089,13.083,41.09858152]
[1672941733567,6.00889698,13.089,13.084,77.36]
[1672941733781,6.00889698,13.089,13.085,20.0]
[1672941733992,6.00889698,13.089,13.086,57.35]
[1672941734319,6.00889698,13.089,13.085,77.36]
[1672941734507,6.00889698,13.089,13.085,20.0]
[1672941737889,6.00889698,13.089,13.084,20.0]
[1672941738100,6.00889698,13.089,13.084,77.36]
[1672941738315,6.00889698,13.089,13.085,20.0]
[1672941739266,6.00889698,13.089,13.085,57.36]
[1672941739470,6.00889698,13.089,13.086,20.0]
[1672941740105,6.00889698,13.089,13.084,20.0]
[1672941742114,6.00889698,13.089,13.083,20.0]
[1672941743589,6.00889698,13.089,13.084,57.36]
[1672941743896,6.00889698,13.089,13.085,20.0]
[1672941744106,6.00889698,13.089,13.083,20.0]
[1672941744293,6.00889698,13.089,13.083,77.37]
[1672941746207,6.00889698,13.089,13.083,20.0]
[1672941748112,6.00889698,13.089,13.082,20.0]
[1672941748421,6.00889698,13.089,13.081,57.38]
[1672941748632,63.34889698,13.089,13.08,0.97962191]
[1672941748842,6.00889698,13.089,13.08,0.97962191]
[1672941749349,17.0,13.088,13.08,0.97962191]
[1672941749561,6.00889698,13.087,13.08,0.97962191]
[1672941749775,26.00889698,13.087,13.08,0.97962191]
[1672941750620,6.00889698,13.087,13.08,0.97962191]
[1672941757030,20.0,13.085,13.08,0.97962191]
[1672941757226,6.00889698,13.084,13.08,0.97962191]
[1672941757877,20.0,13.083,13.076,57.4]
[1672941758188,6.00889698,13.082,13.076,57.4]
[1672941759468,6.00889698,13.082,13.075,169.7378]
[1672941759653,6.00889698,13.082,13.076,20.0]
[1672941763434,6.00889698,13.082,13.078,20.0]
[1672941763644,6.00889698,13.082,13.077,57.39]
[1672941767963,6.00889698,13.082,13.076,20.0]
[1672941768712,6.00889698,13.082,13.077,57.39]
[1672941775235,6.00889698,13.082,13.078,20.0]
[1672941776285,6.00889698,13.082,13.077,57.39]
[1672941778597,6.00889698,13.082,13.078,20.0]
[1672941780816,6.00889698,13.082,13.077,57.39]
[1672941786907,6.00889698,13.082,13.078,20.0]
[1672941787141,6.00889698,13.082,13.079,57.38]
[1672941787322,6.00889698,13.082,13.078,20.0]
[1672941788501,6.00889698,13.082,13.078,40.52744384]
[1672941788711,6.00889698,13.082,13.079,57.38]
[1672941788927,6.00889698,13.082,13.078,97.91744384]
[1672941790895,6.00889698,13.082,13.078,77.91744384]
[1672941791654,6.00889698,13.082,13.078,20.52744384]
[1672941791842,6.00889698,13.082,13.079,20.0]
[1672941792053,6.00889698,13.082,13.079,77.38]
[1672941792506,6.00889698,13.082,13.079,20.0]
[1672941792692,6.00889698,13.082,13.078,77.91744384]
[1672941793039,6.00889698,13.082,13.078,57.39]
[1672941793224,6.00889698,13.082,13.079,20.52744384]
[1672941793437,6.00889698,13.082,13.08,20.0]
[1672941793754,6.00889698,13.082,13.079,40.52744384]
[1672941793947,6.00889698,13.082,13.079,20.52744384]
[1672941794901,6.00889698,13.082,13.08,17.0]
[1672941795110,6.00889698,13.082,13.081,20.0]
[1672941795434,6.00889698,13.082,13.079,20.52744384]
[1672941796481,6.00889698,13.082,13.08,37.0]
[1672941796823,170.0372,13.098,13.081,117.90744384]
[1672941797029,170.0372,13.098,13.083,20.0]
[1672941797230,170.0372,13.098,13.085,20.0]
[1672941797433,170.0372,13.098,13.086,20.0]
[1672941797862,170.0372,13.098,13.086,97.87744384]
[1672941798075,170.0372,13.098,13.086,40.52744384]
[1672941799345,112.7372,13.098,13.087,20.0]
[1672941799759,112.7372,13.098,13.087,40.52744384]
[1672941800501,112.7372,13.098,13.089,20.0]
[1672941800712,20.05,13.1,13.089,20.0]
[1672941802721,20.05,13.1,13.087,40.52744384]
[1672941803025,57.3,13.099,13.087,40.52744384]
[1672941805528,20.05,13.1,13.089,20.0]
[1672941805951,20.05,13.1,13.089,40.52744384]
[1672941807752,20.05,13.1,13.089,20.52744384]
[1672941809653,57.3,13.099,13.086,20.0]
[1672941809853,57.3,13.099,13.088,20.0]
[1672941810171,57.3,13.099,13.088,40.52744384]
[1672941814278,57.3,13.099,13.088,20.52744384]
[1672941817525,57.3,13.099,13.086,20.0]
[1672941817739,17.0,13.096,13.086,20.0]
[1672941818059,37.0,13.096,13.086,20.52744384]
[1672941818471,17.0,13.096,13.086,20.52744384]
[1672941819642,37.0,13.096,13.086,20.52744384]
[1672941821211,17.0,13.096,13.086,20.52744384]
[1672941823955,118.9671,13.097,13.086,20.52744384]
[1672941824261,118.9671,13.097,13.086,77.87744384]
[1672941824457,118.9671,13.097,13.088,20.0]
[1672941824999,118.9671,13.097,13.087,37.0]
[1672941825316,118.9671,13.097,13.087,57.52744384]
[1672941825526,118.9671,13.097,13.087,37.52744384]
[1672941826579,118.9671,13.097,13.087,20.52744384]
[1672941827309,20.0,13.095,13.087,20.52744384]
[1672941828041,37.0,13.096,13.087,20.52744384]
[1672941828774,17.0,13.096,13.087,20.52744384]
[1672941829310,37.0,13.096,13.087,20.52744384]
[1672941830144,17.0,13.096,13.087,20.52744384]
[1672941838973,118.9671,13.097,13.087,77.87744384]
[1672941839605,118.9671,13.097,13.087,20.52744384]
[1672941848947,118.9671,13.097,13.088,20.0]
[1672941849367,118.9671,13.097,13.088,40.52744384]
[1672941850524,118.9671,13.097,13.088,20.52744384]
[1672941851819,118.9671,13.097,13.086,117.4592]
[1672941852019,74.31,13.096,13.086,117.4592]
[1672941852347,57.31,13.096,13.087,40.52744384]
[1672941852521,118.9671,13.097,13.087,97.87744384]
[1672941852732,118.9671,13.097,13.088,20.52744384]
[1672941858759,20.0,13.095,13.086,117.4592]
[1672941858974,20.0,13.096,13.087,17.0]
[1672941859291,20.0,13.096,13.087,37.52744384]
[1672941859472,118.9671,13.097,13.087,37.52744384]
[1672941861180,118.9671,13.097,13.088,20.0]
[1672941862314,118.9671,13.097,13.087,57.52744384]
[1672941862545,118.9671,13.097,13.088,20.0]
[1672941862737,118.9671,13.097,13.089,17.0]
[1672941876333,57.3,13.099,13.089,17.0]
[1672941876520,99.61,13.1,13.091,20.0]
[1672941876951,20.01,13.1,13.092,17.0]
[1672941877264,20.01,13.1,13.092,37.52744384]
[1672941877475,79.55,13.11,13.093,77.32]
[1672941877476,57.25,13.109,13.093,77.32]
[1672941877671,57.23,13.114,13.1,19.87]
[1672941877881,57.22,13.117,13.102,20.0]
[1672941878103,19.92,13.11,13.101,57.29]
[1672941878304,19.92,13.11,13.098,57.3]
[1672941878522,19.92,13.11,13.1,20.0]
[1672941878821,19.92,13.11,13.101,20.0]
[1672941879478,99.47,13.11,13.1,57.29]
[1672941879663,99.47,13.11,13.099,74.3]
[1672941879867,17.0,13.109,13.099,74.3]
[1672941880508,17.0,13.109,13.099,94.82744384]
[1672941883363,17.0,13.109,13.099,37.52744384]
[1672941883556,37.0,13.109,13.098,57.3]
[1672941883976,17.0,13.109,13.098,57.3]
[1672941884293,37.0,13.109,13.098,57.3]
[1672941884499,37.0,13.109,13.097,113.1735]
[1672941884709,20.0,13.107,13.097,113.1735]
[1672941885149,17.0,13.106,13.097,113.1735]
[1672941886614,17.0,13.107,13.097,113.1735]
[1672941886828,57.26,13.108,13.098,57.52744384]
[1672941887143,99.47,13.11,13.099,57.3]
[1672941887351,37.0,13.109,13.099,57.3]
[1672941887558,37.0,13.109,13.098,94.3]
[1672941888828,99.47,13.11,13.098,94.3]
[1672941890398,37.0,13.109,13.098,94.3]
[1672941890813,17.0,13.109,13.098,94.3]
[1672941892820,17.0,13.109,13.098,57.3]
[1672941892821,37.0,13.109,13.098,57.3]
[1672941893149,94.25,13.109,13.098,57.3]
[1672941893327,94.25,13.109,13.097,133.70094384]
[1672941893328,74.25,13.109,13.097,191.01094384]
[1672941894921,74.25,13.109,13.097,133.70094384]
[1672941895550,74.25,13.109,13.097,113.1735]
[1672941896284,74.25,13.109,13.099,20.0]
[1672941896499,74.25,13.109,13.098,20.0]
[1672941897756,74.25,13.109,13.097,170.4835]
[1672941898513,57.25,13.109,13.098,37.0]
[1672941898731,99.47,13.11,13.098,37.0]
[1672941899885,20.0,13.108,13.098,37.0]
[1672941900198,37.0,13.109,13.098,17.0]
[1672941900614,94.25,13.109,13.098,17.0]
[1672941901358,74.25,13.109,13.098,17.0]
[1672941901561,17.0,13.109,13.098,17.0]
[1672941902621,37.0,13.109,13.098,17.0]
[1672941902824,17.0,13.109,13.098,17.0]
[1672941905768,37.0,13.109,13.098,17.0]
[1672941906090,37.0,13.109,13.097,113.1735]
[1672941906486,17.0,13.109,13.097,113.1735]
[1672941906697,17.0,13.109,13.097,170.4835]
[1672941907540,37.0,13.109,13.097,170.4835]
[1672941907755,37.0,13.109,13.097,113.1735]
[1672941907970,37.0,13.109,13.097,170.4835]
[1672941909010,17.0,13.109,13.097,170.4835]
[1672941909874,17.0,13.109,13.098,20.0]
[1672941910713,17.0,13.109,13.097,170.4835]
[1672941912702,99.28,13.11,13.098,37.0]
[1672941913021,99.28,13.11,13.1,20.0]
[1672941913642,99.28,13.11,13.099,20.0]
[1672941914386,99.28,13.11,13.098,94.3]
[1672941917856,19.91,13.11,13.098,94.3]
[1672941925850,19.91,13.11,13.098,77.3]
[1672941927202,19.91,13.11,13.1,20.0]
[1672941927414,19.91,13.11,13.102,20.0]
[1672941928488,19.91,13.11,13.101,74.29]
[1672941932694,19.91,13.11,13.1,20.0]
[1672941932881,17.0,13.109,13.1,20.0]
[1672941933626,17.0,13.109,13.099,77.82744384]
[1672941934246,19.91,13.11,13.101,20.0]
[1672941934475,19.91,13.11,13.102,57.28]
[1672941934789,19.91,13.11,13.101,77.29]
[1672941935004,19.91,13.11,13.101,57.29]
[1672941939306,17.0,13.109,13.101,57.29]
[1672941939532,37.0,13.109,13.101,20.0]
[1672941939750,17.0,13.109,13.1,57.29]
[1672941944170,19.91,13.11,13.1,57.29]
[1672941944375,19.91,13.11,13.102,20.0]
[1672941944897,113.6724,13.111,13.103,114.80744384]
[1672941945106,113.6724,13.111,13.104,20.0]
[1672941945317,41.76199176,13.115,13.105,94.27]
[1672941945633,169.6616,13.119,13.105,77.27]
[1672941945841,20.0,13.116,13.099,57.3]
[1672941946157,19.89,13.11,13.101,20.0]
[1672941946346,19.89,13.11,13.102,74.28]
[1672941946774,19.89,13.11,13.102,57.28]
[1672941947021,19.89,13.11,13.099,77.82744384]
[1672941947216,19.89,13.11,13.101,20.0]
[1672941947529,19.89,13.11,13.101,57.29]
[1672941947720,19.89,13.11,13.1,74.29]
[1672941950475,18.89,13.11,13.101,20.0]
[1672941950662,18.89,13.11,13.1,74.29]
[1672941968889,18.89,13.11,13.101,20.0]
[1672941969073,18.89,13.11,13.102,74.28]
[1672941969493,18.89,13.11,13.103,20.0]
[1672941969723,18.89,13.11,13.105,20.0]
[1672941969918,108.0294,13.111,13.105,20.0]
[1672941970335,108.0294,13.111,13.104,57.27]
[1672941970663,19.79,13.11,13.104,57.27]
[1672941971503,19.79,13.11,13.105,17.0]
[1672941971715,108.0294,13.111,13.105,17.0]
[1672941972144,108.0294,13.111,13.104,17.0]
[1672941972446,19.89,13.11,13.104,17.0]
[1672941972637,69.73532509,13.115,13.104,17.0]
[1672941972638,152.58471192,13.118,13.105,57.27]
[1672941972855,109.2037,13.118,13.106,37.0]
[1672941973063,109.2037,13.118,13.107,77.26]
[1672941973307,109.2037,13.118,13.108,17.0]
[1672941973500,109.2037,13.118,13.109,57.25]
[1672941973690,109.2037,13.118,13.11,37.0]
[1672941973896,109.2037,13.118,13.112,20.0]
[1672941974533,19.94,13.12,13.112,20.0]
[1672941974744,19.94,13.12,13.113,17.0]
[1672941977810,57.19,13.124,13.113,17.0]
[1672941978023,20.0,13.123,13.113,17.0]
[1672941978630,57.17,13.127,13.114,96.63711694]
[1672941978859,57.17,13.129,13.116,20.0]
[1672941979073,19.97,13.13,13.118,20.0]
[1672941979387,19.97,13.13,13.119,17.0]
[1672941979901,19.97,13.13,13.12,20.0]
[1672941980118,19.97,13.13,13.118,20.0]
[1672941980318,99.59,13.13,13.117,57.22]
[1672941980534,77.17,13.129,13.117,57.22]
[1672941980945,57.17,13.129,13.117,57.22]
[1672941981363,99.59,13.13,13.119,20.0]
[1672941981579,19.97,13.13,13.12,17.0]
[1672941981783,20.0,13.129,13.117,57.22]
[1672941981995,57.17,13.128,13.115,57.23]
[1672941982210,19.98,13.13,13.116,57.0]
[1672941982528,19.98,13.13,13.118,20.0]
[1672941982740,19.98,13.13,13.12,20.0]
[1672941982943,19.98,13.13,13.119,57.21]
[1672941983150,20.0,13.129,13.119,57.21]
[1672941983359,20.0,13.129,13.117,57.22]
[1672941983569,20.0,13.129,13.118,20.0]
[1672941983779,20.0,13.129,13.119,57.21]
[1672941984212,20.0,13.129,13.117,57.22]
[1672941984409,99.6,13.13,13.119,20.0]
[1672941984624,19.97,13.13,13.119,77.21]
[1672941985261,19.97,13.13,13.12,17.0]
[1672941987473,19.97,13.13,13.122,20.0]
[1672941988527,57.13,13.137,13.123,77.19]
[1672941988841,20.0,13.137,13.125,20.0]
[1672941989055,20.0,13.137,13.126,77.18]
[1672941989270,64.76767859,13.137,13.123,57.19]
[1672941989449,19.79,13.13,13.121,115.5607]
[1672941990713,19.79,13.13,13.119,57.21]
[1672941990931,17.0,13.129,13.119,57.21]
[1672941991139,19.79,13.13,13.12,20.0]
[1672941993997,19.79,13.13,13.121,17.0]
[1672941996302,19.79,13.13,13.12,20.0]
[1672941996521,19.79,13.13,13.119,77.21]
[1672941996719,19.79,13.13,13.121,20.0]
[1672941997231,19.79,13.13,13.12,37.0]
[1672941997438,19.79,13.13,13.119,57.21]
[1672941997652,17.0,13.129,13.119,57.21]
[1672941997883,17.0,13.129,13.118,116.0539]
[1672941998405,17.0,13.129,13.119,20.0]
[1672941999467,19.79,13.13,13.119,77.21]
[1672942000813,17.0,13.129,13.119,77.21]
[1672942001015,17.0,13.129,13.119,20.0]
[1672942001228,19.79,13.13,13.119,20.0]
[1672942001436,19.79,13.13,13.118,116.0539]
[1672942001964,19.79,13.13,13.12,20.0]
[1672942003141,17.0,13.129,13.119,57.21]
[1672942003349,37.0,13.129,13.119,57.21]
[1672942003537,17.0,13.129,13.119,57.21]
[1672942005320,39.79,13.13,13.119,57.21]
[1672942005321,19.79,13.13,13.119,57.21]
[1672942006394,39.79,13.13,13.119,57.21]
[1672942006608,17.0,13.129,13.119,57.21]
[1672942006824,20.0,13.128,13.119,57.21]
[1672942007130,19.79,13.13,13.119,76.61711694]
[1672942007352,19.79,13.13,13.121,20.0]
[1672942007545,19.79,13.13,13.119,76.61711694]
[1672942007758,19.79,13.13,13.119,57.21]
[1672942007967,19.79,13.13,13.118,116.0539]
[1672942008507,20.0,13.128,13.119,57.21]
[1672942008933,17.0,13.129,13.12,20.0]
[1672942009113,17.0,13.129,13.119,57.21]
[1672942010605,74.17,13.129,13.116,119.8959]
[1672942010812,20.0,13.128,13.112,57.24]
[1672942011017,20.0,13.128,13.106,113.714]
[1672942011018,19.89,13.12,13.106,113.714]
[1672942011237,19.89,13.12,13.107,57.26]
[1672942011551,19.89,13.12,13.108,20.0]
[1672942011761,17.0,13.119,13.109,57.25]
[1672942011969,91.12142905,13.12,13.109,57.25]
[1672942012401,17.0,13.119,13.109,57.25]
[1672942012903,12.0,13.119,13.109,20.0]
[1672942013108,12.0,13.119,13.11,57.25]
[1672942013328,32.0,13.119,13.109,20.0]
[1672942013639,32.0,13.119,13.11,57.25]
[1672942013853,32.0,13.119,13.108,57.26]
[1672942014064,20.0,13.117,13.108,57.26]
[1672942014284,117.5491,13.118,13.108,57.26]
[1672942015420,20.0,13.117,13.107,57.26]
[1672942015631,20.0,13.117,13.108,17.0]
[1672942015853,20.0,13.117,13.109,57.25]
[1672942016063,117.5491,13.118,13.109,57.25]
[1672942019443,117.5491,13.118,13.108,17.0]
[1672942019444,117.5491,13.118,13.108,74.26]
[1672942021336,117.5491,13.118,13.108,17.0]
[1672942022388,117.5491,13.118,13.11,20.0]
[1672942022795,117.5491,13.118,13.111,17.0]
[1672942023533,117.5491,13.118,13.11,17.0]
[1672942025748,91.12142905,13.12,13.11,36.40711694]
[1672942027008,91.12142905,13.12,13.11,93.65711694]
[1672942027327,91.12142905,13.12,13.11,74.25]
[1672942029013,91.12142905,13.12,13.11,57.25]
[1672942029207,91.12142905,13.12,13.11,20.0]
[1672942030712,91.12142905,13.12,13.111,17.0]
[1672942033746,91.12142905,13.12,13.111,20.0]
[1672942034591,19.89,13.12,13.113,20.0]
[1672942034907,171.4453,13.125,13.114,17.0]
[1672942035437,40.0,13.124,13.114,17.0]
[1672942035627,20.0,13.124,13.114,17.0]
[1672942038780,20.0,13.124,13.111,77.24]
[1672942038781,37.0,13.123,13.111,77.24]
[1672942038993,37.0,13.123,13.112,17.0]
[1672942039517,37.0,13.123,13.111,77.24]
[1672942039832,17.0,13.123,13.111,77.24]
[1672942041010,17.0,13.123,13.112,17.0]
[1672942041628,37.0,13.123,13.112,17.0]
[1672942041845,107.71912505,13.123,13.112,17.0]
[1672942042056,107.71912505,13.123,13.112,20.0]
[1672942042279,87.71912505,13.123,13.112,20.0]
[1672942042589,144.90912505,13.123,13.112,20.0]
[1672942043955,144.90912505,13.123,13.113,17.0]
[1672942044375,87.71912505,13.123,13.113,17.0]
[1672942045533,70.71912505,13.123,13.113,17.0]
[1672942050255,114.2653,13.125,13.114,76.63711694]
[1672942050590,114.2653,13.125,13.115,56.40711694]
[1672942050767,114.2653,13.125,13.116,20.0]
[1672942050978,114.2653,13.125,13.117,17.0]
[1672942052454,114.2653,13.125,13.117,20.0]
[1672942052675,114.2653,13.125,13.118,17.0]
[1672942054552,114.2653,13.125,13.117,17.0]
[1672942055285,114.2653,13.125,13.118,20.0]
[1672942055722,19.91,13.13,13.12,20.0]
[1672942056784,19.91,13.13,13.121,17.0]
[1672942057405,19.91,13.13,13.12,17.0]
[1672942058445,19.91,13.13,13.121,20.0]
[1672942058655,19.91,13.13,13.122,17.0]
[1672942062150,112.0439,13.132,13.122,17.0]
[1672942062858,112.0439,13.132,13.122,36.40711694]
[1672942065083,115.91671839,13.135,13.123,20.0]
[1672942065278,99.22,13.14,13.123,20.0]
[1672942065279,57.13,13.138,13.124,94.19]
[1672942065485,20.0,13.137,13.125,20.0]
[1672942065699,20.0,13.137,13.124,113.59711694]
[1672942065915,57.14,13.136,13.124,37.0]
[1672942066341,57.14,13.136,13.125,19.40711694]
[1672942066554,77.13,13.137,13.126,37.0]
[1672942067692,99.54737149,13.137,13.126,37.0]
[1672942067903,17.0,13.136,13.126,37.0]
[1672942068343,99.54737149,13.137,13.126,37.0]
[1672942072327,17.0,13.136,13.126,37.0]
[1672942072873,75.77671839,13.136,13.126,37.0]
[1672942073086,20.0,13.135,13.126,37.0]
[1672942074235,20.0,13.133,13.123,57.19]
[1672942074450,20.0,13.133,13.12,20.0]
[1672942074766,20.0,13.133,13.121,57.2]
[1672942075162,20.0,13.131,13.121,57.2]
[1672942075395,20.0,13.131,13.122,17.0]
[1672942075795,111.3106,13.132,13.122,17.0]
[1672942076340,111.3106,13.132,13.123,57.19]
[1672942076532,111.3106,13.132,13.124,17.0]
[1672942080323,111.3106,13.132,13.121,57.2]
[1672942080542,111.3106,13.132,13.119,57.21]
[1672942080543,19.89,13.13,13.119,57.21]
[1672942081700,19.89,13.13,13.121,20.0]
[1672942082016,19.89,13.13,13.122,17.0]
[1672942082646,19.89,13.13,13.121,17.0]
[1672942082860,111.3106,13.132,13.122,57.2]
[1672942083073,111.3106,13.132,13.123,17.0]
[1672942083707,20.0,13.131,13.12,57.2]
[1672942083908,19.79,13.13,13.119,57.21]
[1672942084976,19.79,13.13,13.121,20.0]
[1672942085180,19.79,13.13,13.122,74.2]
[1672942085604,19.79,13.13,13.122,17.0]
[1672942085920,19.79,13.13,13.122,74.2]
[1672942086129,111.3106,13.132,13.122,74.2]
[1672942089283,111.3106,13.132,13.122,17.0]
[1672942089496,111.3106,13.132,13.122,20.0]
[1672942089728,111.3106,13.132,13.123,17.0]
[1672942090443,56.01050922,13.137,13.125,20.0]
[1672942090633,56.01050922,13.137,13.126,37.0]
[1672942090844,56.01050922,13.137,13.126,94.18]
[1672942091263,224.09291839,13.139,13.126,94.18]